[Event "FIDE WY-U16 Olympiad 2022"]
[Site "Nakhchivan"]
[Date "2022.10.02"]
[Round "1.27"]
[White "Camlar, Arda"]
[Black "Badenhorst, Chloe"]
[Result "1-0"]
[ECO "A05"]
[WhiteElo "2322"]
[BlackElo "1751"]
[Annotator "TA"]
[PlyCount "55"]
[EventDate "2022.10.02"]
[EventType "team-tourn"]
[EventCountry "AZE"]
[SourceTitle "playchess.com"]
[Source "ChessBase"]
[SourceQuality "1"]
[WhiteTeam "Turkey"]
[BlackTeam "South Africa"]
[WhiteTeamCountry "TUR"]
[BlackTeamCountry "RSA"]
[TimeControl "40/5400+30:1800+30"]

{[%evp 19,55,40,42,26,22,12,17,33,33,17,42,5,76,66,95,79,114,79,144,147,133,134,127,115,104,120,230,237,261,245,254,245,235,248,596,589,29990,29991]} 1. Nf3 {[%emt 0:00:15]} Nf6 {[%emt 0:00:06]} 2. g3 {[%emt 0:00:17]} g6 {[%emt 0:00:06]} 3. Bg2 {[%emt 0:00:22]} Bg7 {[%emt 0:00:03]} 4. O-O {[%emt 0:00:46]} O-O {[%emt 0:00:06]} 5. c4 {[%emt 0:01:07]} d5 {[%emt 0:03:20]} 6. cxd5 {[%emt 0:02:08]} Nxd5 {[%emt 0:00:10]} 7. Nc3 {[%emt 0:01:00]} Nxc3 {[%emt 0:05:03]} 8. bxc3 {[%emt 0:02:08]} c6 {[%emt 0:04:29]} 9. d4 {[%emt 0:05:13]} Nd7 {[%emt 0:01:11]} 10. e4 {[%emt 0:02:33]} e5 {[%emt 0:02:57]} 11. Ba3 {[%emt 0:13:39] D74: Fianchetto Grünfeld: Main Line (5 Nf3 0-0 6 cxd5 Nxd5 7 0-0).} Re8 {[%emt 0:05:43]} 12. Qc2 {[%emt 0:03:26]} (12. Re1 {looks sharper.} Qa5 13. Qb3 exd4 14. cxd4 Nb6 15. Bb4) 12... exd4 {[%emt 0:05:52]} 13. cxd4 {[%emt 0:01:22] [#] The position is equal.} Nb6 $146 {[%emt 0:03:00]} ({Predecessor:} 13... Qa5 14. Bb2 c5 15. Rfe1 cxd4 16. Bxd4 Bxd4 17. Nxd4 Ne5 18. Nb3 Qb6 19. Rab1 Bg4 {1-0 (34) Valle,E (2139)-Toro Castaneda,E (1995) Medellin 2018}) 14. Rad1 {[%emt 0:02:53]} Be6 {[%emt 0:04:20]} 15. Rfe1 {[%emt 0:04:14]} h6 {[%emt 0:04:25]} (15... Nc4 $11 {keeps the balance.} 16. Bb4 Rc8) 16. Ne5 $16 {[%emt 0:03:33]} Nd7 {[%emt 0:13:00]} 17. Nc4 {[%emt 0:09:49] White is more active.} Bf8 {[%emt 0:11:31]} 18. Bb2 {[%emt 0:12:18]} Nf6 {[%emt 0:08:09] Against d5} (18... Rc8 $142) 19. d5 {[%emt 0:01:43]} cxd5 {[%emt 0:05:06]} 20. exd5 {[%emt 0:01:34][%cal Be4d5,Bd5d6][%mdl 32]} Bf5 {[%emt 0:01:57]} 21. Rxe8 {[%emt 0:02:38]} Nxe8 {[%emt 0:01:01]} 22. Qb3 {[%emt 0:02:51] aiming for d6.} Rc8 {[%emt 0:07:12] [#]} (22... Nd6 $16 {is a better defense.}) 23. d6 $1 $18 {[%emt 0:13:23]} Be6 {[%emt 0:02:22] [#]} 24. Bd5 {[%emt 0:02:18]} ({Wrong is} 24. Qc3 $2 Bg7 25. Qa5 b6 26. Qxa7 Rxc4 $19) 24... Bxd5 {[%emt 0:03:44]} 25. Rxd5 $40 {[%emt 0:00:36][%mdl 128] Hoping for Ne5. White attacks with force.} Nf6 {[%emt 0:02:31]} 26. Rd1 {[%emt 0:04:06]} Bg7 $2 {[%emt 0:01:24]} (26... Nd7 {is tougher.} 27. Qc3 f6) 27. Ne5 {[%emt 0:01:41]} Nd7 {[%emt 0:00:46]} 28. Qxf7+ {[%emt 0:00:37] Weighted Error Value: White=0.09 (flawless) /Black=0.77} 1-0

[Event "FIDE WY-U16 Olympiad 2022"]
[Site "Nakhchivan"]
[Date "2022.10.02"]
[Round "1.27"]
[White "Wang, Pei-Shan"]
[Black "Triboi, Alexander"]
[Result "1/2-1/2"]
[ECO "B02"]
[WhiteElo "1315"]
[BlackElo "2052"]
[Annotator "TA"]
[PlyCount "74"]
[EventDate "2022.10.02"]
[EventType "team-tourn"]
[EventCountry "AZE"]
[SourceTitle "playchess.com"]
[Source "ChessBase"]
[SourceQuality "1"]
[WhiteTeam "South Africa"]
[BlackTeam "Moldova"]
[WhiteTeamCountry "RSA"]
[BlackTeamCountry "MDA"]
[TimeControl "40/5400+30:1800+30"]

{[%evp 10,74,-8,-4,-13,0,-2,0,-12,-1,0,0,0,-43,15,0,8,4,48,50,109,77,70,48,266,49,86,91,91,91,121,16,85,87,100,72,201,188,199,197,353,332,360,369,428,408,711,285,411,0,0,0,0,0,0,0,0,0,0,0,0,0,0,0,0,0,0]} 1. e4 {[%emt 0:00:02]} Nf6 {[%emt 0:01:11]} 2. Nc3 {[%emt 0:00:35]} d6 {[%emt 0:00:07]} 3. Nf3 {[%emt 0:00:27]} g6 {[%emt 0:00:30]} 4. h3 {[%emt 0:03:25]} Bg7 {[%emt 0:00:07]} 5. Bc4 {[%emt 0:00:36]} O-O {[%emt 0:00:17]} 6. O-O {[%emt 0:01:10] [#]} Nxe4 $1 {[%emt 0:02:34] B07: Pirc Defence: Miscellaneous Systems.} 7. Nxe4 {[%emt 0:01:59]} d5 {[%emt 0:00:44]} 8. Bd3 {[%emt 0:00:57][%cal Bc4d3,Bd3e4,Be4c2][%mdl 32]} dxe4 {[%emt 0:00:07]} 9. Bxe4 {[%emt 0:00:24] [#]} c5 $146 {[%emt 0:00:45] Against d4} ({Predecessor:} 9... Nd7 10. d4 Nf6 11. Bd3 b6 12. c3 Bb7 13. Re1 c5 14. Be3 Qc7 15. dxc5 bxc5 16. Bc4 Rad8 17. Qe2 h6 18. Rad1 Nd7 19. Bd5 Rb8 20. Bxb7 Rxb7 {1-0 (43) Avramescu,P (2035)-Creanga,R (2053) Chess.com INT 2020}) 10. c3 {[%emt 0:03:23]} e5 {[%emt 0:02:07]} 11. Bc2 {[%emt 0:01:41]} f5 {[%emt 0:00:50]} (11... Qc7 $15) 12. d3 {[%emt 0:01:15]} Nc6 {[%emt 0:01:13]} 13. Re1 {[%emt 0:01:32]} b6 {[%emt 0:03:57]} 14. Ba4 {[%emt 0:02:52]} Qc7 {[%emt 0:12:09]} (14... Bd7 $14) 15. Bxc6 {[%emt 0:00:52]} Qxc6 {[%emt 0:00:01]} 16. Nxe5 {[%emt 0:02:13]} Qc7 {[%emt 0:02:20]} (16... Qd5 $1 $14 17. Qb3 Qxb3 18. axb3 Re8) 17. Nf3 $2 {[%emt 0:03:34]} (17. Qb3+ $1 $18 c4 18. Nxc4 (18. Qxc4+ Qxc4 19. Nxc4 Ba6 $16)) 17... h6 {[%emt 0:02:07]} 18. d4 {[%emt 0:05:53]} Bb7 {[%emt 0:02:26]} 19. dxc5 {[%emt 0:03:23]} bxc5 {[%emt 0:00:21] [#]} 20. Qe2 {[%emt 0:02:56]} (20. Bf4 $1 $16 {[%mdl 512]} Qb6 21. Qb3+ Qxb3 22. axb3) 20... Rad8 {[%emt 0:05:39] [#]} (20... Bd5 $11) 21. Be3 $1 $16 {[%emt 0:09:06]} Kh7 {[%emt 0:02:33]} 22. Rad1 {[%emt 0:04:21]} Rde8 {[%emt 0:02:42]} (22... Rxd1 $16 23. Rxd1 f4) 23. Qc4 {[%emt 0:03:31]} Bxf3 {[%emt 0:03:24]} 24. gxf3 {[%emt 0:00:12]} f4 $2 {[%emt 0:04:13]} (24... Rc8 25. Bf4 Qf7) 25. Bxc5 $18 {[%emt 0:04:39]} Rxe1+ {[%emt 0:04:54]} 26. Rxe1 {[%emt 0:00:12]} Rf5 {[%emt 0:01:31]} 27. b4 {[%emt 0:03:31]} ({Don't do} 27. Re8 Qf7 28. Qxf7 Rxf7 $18) 27... Qc6 {[%emt 0:14:31]} (27... Be5 $142 28. Qa6 Rf7) 28. Qe4 {[%emt 0:04:50]} (28. Re7 $142 {[%cal Oe7g7] Hoping for Rxg7+!} Qxf3 29. Kh2) 28... Qf6 {[%emt 0:01:33]} (28... Qd7 {was necessary.} 29. Qe7 Qd5) 29. Rc1 $2 {[%emt 0:09:15]} ({White should play} 29. Bd4 $18 Qg5+ 30. Kh2) 29... Qh4 $11 {[%emt 0:01:46] The position is equal.} 30. Kh2 {[%emt 0:04:39]} ({Avoid the trap} 30. Bxa7 $2 Qxh3 31. Qxf5 Qxf5 $19) 30... Rh5 {[%emt 0:02:18]} 31. Qe6 {[%emt 0:01:37]} Rxc5 $1 {[%emt 0:00:28][%mdl 64] Remove Defender} 32. bxc5 {[%emt 0:00:58] And now Rg1 would win.} Qxf2+ {[%emt 0:00:02] KQR-KQB} 33. Kh1 {[%emt 0:00:11] aiming for Qd5.} Qxf3+ {[%emt 0:00:25]} 34. Kh2 {[%emt 0:03:13] Strongly threatening Rg1.} Qf2+ {[%emt 0:04:13]} 35. Kh1 {[%emt 0:00:30] Black must now prevent Rg1.} Qf3+ {[%emt 0:03:29]} 36. Kh2 {[%emt 0:01:26] Rg1 is the strong threat.} Qf2+ {[%emt 0:03:43]} 37. Kh1 {[%emt 0:00:08] Threatens to win with Rg1.} Qf3+ {[%emt 0:01:11] Black escapes into a draw.  Weighted Error Value: White=0.65/Black=0.45} 1/2-1/2

[Event "FIDE WY-U16 Olympiad 2022"]
[Site "Nakhchivan"]
[Date "2022.10.02"]
[Round "1.28"]
[White "Bargan, Victoria"]
[Black "Goliath, Brimarion"]
[Result "1-0"]
[ECO "D35"]
[WhiteElo "1720"]
[BlackElo "1394"]
[Annotator "NA RC COMBH"]
[PlyCount "121"]
[EventDate "2022.10.02"]
[EventType "team-tourn"]
[EventCountry "AZE"]
[SourceTitle "playchess.com"]
[Source "ChessBase"]
[SourceQuality "1"]
[WhiteTeam "Moldova"]
[BlackTeam "South Africa"]
[WhiteTeamCountry "MDA"]
[BlackTeamCountry "RSA"]
[TimeControl "40/5400+30:1800+30"]

1. d4 {[%emt 0:00:03]} d5 {[%emt 0:00:23]} 2. c4 {[%emt 0:00:03]} e6 {[%emt 0:00:34]} 3. Nc3 {[%emt 0:00:05]} Nf6 {[%emt 0:01:05]} 4. cxd5 {[%emt 0:00:07]} exd5 {[%emt 0:00:37]} 5. Bg5 {[%emt 0:00:04]} Be7 {[%emt 0:00:38]} 6. e3 {[%emt 0:00:04]} O-O {[%emt 0:08:36]} 7. Bd3 {[%emt 0:00:47]} Nbd7 {[%emt 0:03:21]} 8. Nf3 {[%emt 0:00:36]} Re8 {[%emt 0:01:23]} 9. O-O {[%emt 0:01:24]} c6 {[%emt 0:04:19]} 10. Qc2 {[%emt 0:01:39]} h6 {[%emt 0:05:33]} 11. Bf4 {[%emt 0:02:12]} b6 {[%emt 0:19:57]} 12. Nb5 {[%emt 0:01:15]} Bb7 {[%emt 0:10:59]} 13. Nc7 {[%emt 0:00:18]} Rc8 {[%emt 0:00:35]} 14. Nxe8 {[%emt 0:00:10]} Qxe8 {[%emt 0:00:32]} 15. h3 {[%emt 0:04:25]} c5 {[%emt 0:00:38]} 16. Qb1 {[%emt 0:11:40]} c4 {[%emt 0:11:18]} 17. Bc2 {[%emt 0:01:47]} Nf8 {[%emt 0:02:16]} 18. Ne5 {[%emt 0:02:28]} b5 {[%emt 0:01:03]} 19. a3 {[%emt 0:10:32]} a5 {[%emt 0:00:50]} 20. Re1 {[%emt 0:07:26]} b4 {[%emt 0:02:08]} 21. axb4 {[%emt 0:02:03]} Bxb4 {[%emt 0:00:15]} 22. Rc1 {[%emt 0:03:07]} Qb5 {[%emt 0:05:53]} 23. Qa2 {[%emt 0:08:49]} Qb6 {[%emt 0:01:33]} 24. Rd1 {[%emt 0:01:09]} Ne6 {[%emt 0:01:30]} 25. Bh2 {[%emt 0:01:22]} Nc7 {[%emt 0:00:55]} 26. Bf5 {[%emt 0:09:51]} Rd8 {[%emt 0:00:58]} 27. Bg3 {[%emt 0:06:55]} Nb5 {[%emt 0:00:50]} 28. f3 {[%emt 0:02:49]} g6 {[%emt 0:03:30]} 29. Bc2 {[%emt 0:01:03]} c3 {[%emt 0:03:50]} 30. Be1 {[%emt 0:01:02]} Rc8 {[%emt 0:00:20]} 31. Rab1 {[%emt 0:08:58]} Qc7 {[%emt 0:01:52]} 32. bxc3 {[%emt 0:03:03]} Nxc3 {[%emt 0:00:15]} 33. Bxc3 {[%emt 0:00:03]} Qxc3 {[%emt 0:00:13]} 34. Bd3 {[%emt 0:00:02]} Qc7 {[%emt 0:01:46]} 35. Rbc1 {[%emt 0:02:41]} Qb6 {[%emt 0:00:28]} 36. Rxc8+ {[%emt 0:00:15]} Bxc8 {[%emt 0:00:12]} 37. Qc2 {[%emt 0:00:29]} Bb7 {[%emt 0:00:42]} 38. Bxg6 {[%emt 0:00:19]} Kf8 {[%emt 0:02:53]} 39. Nxf7 {[%emt 0:01:29]} Ne4 {[%emt 0:01:36]} 40. Ne5 {[%emt 0:00:44]} Nf6 {[%emt 0:00:34]} 41. Qf5 {[%emt 0:30:18]} Ke7 {[%emt 0:30:40]} 42. Ng4 {[%emt 0:01:09]} Nxg4 {[%emt 0:00:37]} 43. Qf7+ {[%emt 0:00:19]} Kd8 {[%emt 0:00:28]} 44. hxg4 {[%emt 0:01:10]} Bc6 {[%emt 0:01:46]} 45. Rc1 {[%emt 0:01:11]} Bd2 {[%emt 0:00:21]} 46. Qf6+ {[%emt 0:00:28]} Kc7 {[%emt 0:00:28]} 47. Qe7+ {[%emt 0:00:37]} Kb8 {[%emt 0:00:17]} 48. Qd6+ {[%emt 0:02:47]} Kb7 {[%emt 0:00:23]} 49. Rb1 {[%emt 0:00:06]} Bxe3+ {[%emt 0:00:28]} 50. Kh1 {[%emt 0:00:19]} Bb5 {[%emt 0:00:38]} 51. Qxb6+ {[%emt 0:00:09]} Kxb6 {[%emt 0:00:05]} 52. Bd3 {[%emt 0:00:14]} a4 {[%emt 0:00:40]} 53. Rxb5+ {[%emt 0:00:11]} Kc6 {[%emt 0:00:09]} 54. Rb4 {[%emt 0:01:06]} a3 {[%emt 0:00:29]} 55. Bb1 {[%emt 0:00:05]} Bc1 {[%emt 0:00:22]} 56. Kg1 {[%emt 0:00:21]} Bd2 {[%emt 0:00:27]} 57. Ra4 {[%emt 0:00:11]} Bc1 {[%emt 0:00:15]} 58. Bd3 {[%emt 0:00:33]} Bb2 {[%emt 0:01:50]} 59. Kf1 {[%emt 0:00:09]} a2 {[%emt 0:00:13]} 60. Ra6+ {[%emt 0:00:44]} Kc7 {[%emt 0:00:12]} 61. Rxa2 {[%emt 0:00:03]} 1-0

[Event "FIDE WY-U16 Olympiad 2022"]
[Site "Nakhchivan"]
[Date "2022.10.02"]
[Round "1.28"]
[White "Meise, Keagen"]
[Black "Alagoz, Zumra Meryem"]
[Result "1-0"]
[ECO "E77"]
[WhiteElo "1362"]
[BlackElo "1830"]
[Annotator "NA RC COMBH"]
[PlyCount "141"]
[EventDate "2022.10.02"]
[EventType "team-tourn"]
[EventCountry "AZE"]
[SourceTitle "playchess.com"]
[Source "ChessBase"]
[SourceQuality "1"]
[WhiteTeam "South Africa"]
[BlackTeam "Turkey"]
[WhiteTeamCountry "RSA"]
[BlackTeamCountry "TUR"]
[TimeControl "40/5400+30:1800+30"]

1. d4 {[%emt 0:00:26]} Nf6 {[%emt 0:00:05]} 2. c4 {[%emt 0:00:06]} g6 {[%emt 0:00:03]} 3. Nc3 {[%emt 0:00:11]} Bg7 {[%emt 0:00:04]} 4. e4 {[%emt 0:00:05]} d6 {[%emt 0:00:03]} 5. f4 {[%emt 0:00:05]} O-O {[%emt 0:01:51]} 6. Nf3 {[%emt 0:00:34]} c5 {[%emt 0:01:40]} 7. d5 {[%emt 0:00:21]} e6 {[%emt 0:02:20]} 8. Bd3 {[%emt 0:01:18]} exd5 {[%emt 0:00:38]} 9. cxd5 {[%emt 0:00:12]} Re8 {[%emt 0:03:57]} 10. O-O {[%emt 0:00:30]} Bg4 {[%emt 0:05:47]} 11. h3 {[%emt 0:05:07]} Bxf3 {[%emt 0:00:05]} 12. Qxf3 {[%emt 0:00:08]} a6 {[%emt 0:01:45]} 13. a4 {[%emt 0:00:52]} Nbd7 {[%emt 0:00:30]} 14. Be3 {[%emt 0:02:01]} Rc8 {[%emt 0:08:06]} 15. Rab1 {[%emt 0:02:43]} Qa5 {[%emt 0:10:52]} 16. Bf2 {[%emt 0:04:57]} c4 {[%emt 0:10:48]} 17. Bc2 {[%emt 0:00:53]} b5 {[%emt 0:01:00]} 18. axb5 {[%emt 0:02:45]} axb5 {[%emt 0:00:04]} 19. Ra1 {[%emt 0:02:38]} Qb4 {[%emt 0:00:06]} 20. Rfb1 {[%emt 0:00:48]} Ra8 {[%emt 0:03:05]} 21. Rxa8 {[%emt 0:05:24]} Rxa8 {[%emt 0:00:08]} 22. Bd4 {[%emt 0:00:37]} Ne8 {[%emt 0:02:23]} 23. Qe3 {[%emt 0:04:07]} Bxd4 {[%emt 0:02:42]} 24. Qxd4 {[%emt 0:00:08]} f6 {[%emt 0:02:09]} 25. Kh2 {[%emt 0:03:08]} Rc8 {[%emt 0:04:55]} 26. b3 {[%emt 0:18:18]} Nc7 {[%emt 0:12:02]} 27. bxc4 {[%emt 0:02:18]} Qxc4 {[%emt 0:00:07]} 28. Qxc4 {[%emt 0:00:17]} bxc4 {[%emt 0:00:08]} 29. Rb7 {[%emt 0:00:15]} Kf8 {[%emt 0:04:16]} 30. Bd1 {[%emt 0:01:24]} Ke7 {[%emt 0:05:17]} 31. Be2 {[%emt 0:01:14]} Na8 {[%emt 0:04:26]} 32. Bg4 {[%emt 0:01:10]} Rc7 {[%emt 0:01:06]} 33. Rxc7 {[%emt 0:01:33]} Nxc7 {[%emt 0:00:06]} 34. Bxd7 {[%emt 0:00:05]} Kxd7 {[%emt 0:00:11]} 35. Kg3 {[%emt 0:00:03]} Na6 {[%emt 0:03:44]} 36. Kf3 {[%emt 0:00:37]} Nc5 {[%emt 0:04:18]} 37. Ke3 {[%emt 0:01:00]} Nb3 {[%emt 0:00:11]} 38. Nb5 {[%emt 0:00:49]} g5 {[%emt 0:03:15]} 39. g3 {[%emt 0:01:16]} h5 {[%emt 0:01:36]} 40. h4 {[%emt 0:00:56]} gxh4 {[%emt 0:00:24]} 41. gxh4 {[%emt 0:30:06]} Nc1 {[%emt 0:32:11]} 42. Kd2 {[%emt 0:02:09]} Nd3 {[%emt 0:00:54]} 43. Ke3 {[%emt 0:00:04]} Ne1 {[%emt 0:00:22]} 44. Kf2 {[%emt 0:00:13]} Nc2 {[%emt 0:01:19]} 45. Ke2 {[%emt 0:00:50]} Nb4 {[%emt 0:00:45]} 46. Ke3 {[%emt 0:02:04]} Nd3 {[%emt 0:00:16]} 47. Na3 {[%emt 0:06:00]} Ne1 {[%emt 0:00:28]} 48. Nxc4 {[%emt 0:00:10]} Ke7 {[%emt 0:00:44]} 49. Kf2 {[%emt 0:06:12]} Nd3+ {[%emt 0:00:09]} 50. Kg3 {[%emt 0:00:10]} Nc5 {[%emt 0:00:33]} 51. Kf3 {[%emt 0:00:43]} Nd3 {[%emt 0:00:25]} 52. Na5 {[%emt 0:00:13]} Ne1+ {[%emt 0:00:27]} 53. Kg3 {[%emt 0:00:10]} Nd3 {[%emt 0:00:24]} 54. Nc6+ {[%emt 0:00:12]} Kf7 {[%emt 0:00:56]} 55. Nd4 {[%emt 0:00:09]} Nc5 {[%emt 0:00:35]} 56. Kf3 {[%emt 0:00:09]} Nb7 {[%emt 0:01:06]} 57. Nf5 {[%emt 0:00:28]} Kg6 {[%emt 0:00:27]} 58. Ke3 {[%emt 0:00:10]} Kh7 {[%emt 0:00:29]} 59. Kd4 {[%emt 0:00:07]} Kg6 {[%emt 0:00:43]} 60. Kc4 {[%emt 0:00:05]} Na5+ {[%emt 0:00:14]} 61. Kb4 {[%emt 0:00:11]} Nb7 {[%emt 0:00:35]} 62. Kb5 {[%emt 0:00:47]} Nc5 {[%emt 0:00:18]} 63. Nxd6 {[%emt 0:00:25]} Nd3 {[%emt 0:00:09]} 64. f5+ {[%emt 0:00:11]} Kg7 {[%emt 0:00:03]} 65. Nc4 {[%emt 0:00:15]} Kf7 {[%emt 0:00:19]} 66. Kc6 {[%emt 0:00:54]} Ke8 {[%emt 0:00:14]} 67. Kc7 {[%emt 0:00:39]} Nc5 {[%emt 0:00:19]} 68. d6 {[%emt 0:00:10]} Na6+ {[%emt 0:00:03]} 69. Kc8 {[%emt 0:00:15]} Nc5 {[%emt 0:00:13]} 70. Nb6 {[%emt 0:00:09]} Kf7 {[%emt 0:00:04]} 71. d7 {[%emt 0:00:09]} 1-0

[Event "FIDE WY-U16 Olympiad 2022"]
[Site "Nakhchivan"]
[Date "2022.10.02"]
[Round "1.29"]
[White "Manon, Reja Neer"]
[Black "Levitan, Judah Nathan"]
[Result "1-0"]
[ECO "B41"]
[WhiteElo "2107"]
[BlackElo "1725"]
[Annotator "TA"]
[PlyCount "99"]
[EventDate "2022.10.02"]
[EventType "team-tourn"]
[EventCountry "AZE"]
[SourceTitle "playchess.com"]
[Source "ChessBase"]
[SourceQuality "1"]
[WhiteTeam "Bangladesh"]
[BlackTeam "South Africa"]
[WhiteTeamCountry "BAN"]
[BlackTeamCountry "RSA"]
[TimeControl "40/5400+30:1800+30"]

{[%evp 14,99,36,36,36,49,92,80,122,127,123,115,111,81,151,139,168,171,172,176,168,172,178,170,172,170,169,158,164,148,183,152,162,152,179,179,180,185,196,196,250,247,270,279,252,250,434,429,432,419,389,403,456,448,682,664,685,645,855,755,1918,1761,4356,3941,5923,5932,5815,5812,5318,5244,29973,29975,29987,29981,29982,29983,29982,29985,29985,29985,29987,29988,29991,29992,29994,29990,29995,29996]} 1. e4 {[%emt 0:00:08]} c5 {[%emt 0:00:06]} 2. Nf3 {[%emt 0:00:14]} e6 {[%emt 0:00:05]} 3. d4 {[%emt 0:01:46]} cxd4 {[%emt 0:00:07]} 4. Nxd4 {[%emt 0:00:07]} a6 {[%emt 0:00:04]} 5. c4 {[%emt 0:05:12]} Nf6 {[%emt 0:00:07]} 6. Nc3 {[%emt 0:03:36]} Qc7 {[%emt 0:00:06]} 7. Be2 {[%emt 0:08:46]} Bb4 {[%emt 0:00:11]} 8. Nc2 {[%emt 0:07:49]} Bxc3+ {[%emt 0:09:11] outshines the older 8...Be7. B41: Sicilian: Kan Variation: 5 c4.} 9. bxc3 {[%emt 0:00:08]} Qe5 {[%emt 0:01:10]} 10. O-O {[%emt 0:07:52] [#]} O-O $146 {[%emt 0:02:06] White is better.} ({Predecessor:} 10... Nxe4 11. Bf3 O-O 12. Ba3 Re8 13. Re1 d5 14. cxd5 exd5 15. c4 f5 16. cxd5 Nd7 {½-½ (31) Anata,C (2159)-Alekhya,M (1810) Dhaka 2019}) 11. Ba3 {[%emt 0:04:52]} Re8 {[%emt 0:00:31]} 12. Bd6 {[%emt 0:15:32]} Qxe4 {[%emt 0:04:10]} 13. Re1 {[%emt 0:03:55]} Qc6 {[%emt 0:03:15]} ({Better is} 13... Qh4) 14. Bf3 {[%emt 0:10:11][%mdl 1024] White has strong compensation. A strong pair of Bishops.} Qb6 {[%emt 0:06:05]} 15. c5 {[%emt 0:02:01]} Qd8 {[%emt 0:01:11]} 16. Na3 {[%emt 0:01:02][%cal Bc2a3,Ba3c4,Bc4b6][%mdl 32]} Nc6 {[%emt 0:02:59]} 17. Nc4 {[%emt 0:00:30]} h6 {[%emt 0:04:37]} 18. Nb6 {[%emt 0:00:26]} Ra7 {[%emt 0:00:07]} 19. Qd2 {[%emt 0:00:56]} Nh7 {[%emt 0:01:09]} 20. g3 {[%emt 0:00:31]} Ng5 {[%emt 0:00:50]} 21. Bg2 $36 {[%emt 0:00:18][%mdl 2048] White is on the roll.} f6 {[%emt 0:01:47]} 22. Rad1 {[%emt 0:04:26]} Nf7 {[%emt 0:00:56]} 23. Qb2 {[%emt 0:01:30]} Nxd6 {[%emt 0:01:05]} 24. cxd6 {[%emt 0:01:50]} ({Don't play} 24. Rxd6 $6 Qc7 $16) 24... a5 {[%emt 0:05:00] [#]} 25. a4 $1 {[%emt 0:01:52]} Ra6 {[%emt 0:28:50]} 26. Rb1 {[%emt 0:03:54]} Ra7 {[%emt 0:01:13]} (26... Kh8 $142 27. f4 e5) 27. f4 $18 {[%emt 0:01:30]} f5 {[%emt 0:00:47]} 28. Qf2 {[%emt 0:00:40]} Ra6 {[%emt 0:01:46]} 29. Bf1 {[%emt 0:00:06]} Ra7 {[%emt 0:00:10] [#]} (29... Rxb6 30. Rxb6 (30. Qxb6 Qf6 $18) 30... Qf6) 30. Bb5 {[%emt 0:00:17]} Ra6 {[%emt 0:06:39]} 31. Bxa6 {[%emt 0:00:29]} bxa6 {[%emt 0:00:03]} 32. Nc4 {[%emt 0:00:02]} Qf6 {[%emt 0:00:41]} 33. Ne5 {[%emt 0:00:24]} Nxe5 {[%emt 0:00:47]} (33... g5 $142 34. Nxc6 dxc6 35. fxg5 hxg5) 34. Rxe5 {[%emt 0:00:27]} g5 {[%emt 0:00:34]} 35. Rb8 {[%emt 0:00:33][%cal Bb1b8,Bb8c8,Bc8c5,Bc5d5][%mdl 32]} Kf7 {[%emt 0:01:17]} 36. Rc5 {[%emt 0:00:17]} e5 {[%emt 0:01:13]} 37. fxe5 {[%emt 0:01:04]} Rxe5 {[%emt 0:00:31]} 38. Rbxc8 {[%emt 0:00:50]} Qxd6 {[%emt 0:00:14]} 39. Rxe5 {[%emt 0:00:04]} Qxe5 {[%emt 0:00:09]} 40. Rc5 {[%emt 0:00:03]} d5 {[%emt 0:00:39]} 41. c4 {[%emt 0:30:21]} Qe4 {[%emt 0:31:59]} 42. Rxd5 {[%emt 0:00:57] White mates.} f4 {[%emt 0:00:52]} 43. Rd4 {[%emt 0:01:10]} Qb1+ {[%emt 0:00:23]} 44. Kg2 {[%emt 0:00:03]} Qb7+ {[%emt 0:00:12]} 45. Rd5 {[%emt 0:00:09]} Qe7 {[%emt 0:00:35]} 46. gxf4 {[%emt 0:00:19]} Qe4+ {[%emt 0:00:08]} 47. Qf3 {[%emt 0:00:28]} Qc2+ {[%emt 0:00:30]} 48. Kg3 {[%emt 0:00:02]} g4 {[%emt 0:01:31]} 49. Qd3 {[%emt 0:00:46]} Qc1 {[%emt 0:00:42]} 50. Qf5+ {Weighted Error Value: White=0.04 (flawless) /Black=0.47} 1-0